fUSD/lending_fUSD_20260225
["ID","MTS","AMOUNT","RATE_DAILY","PERIOD"]
[406619918,1771978249877,-482.62264482,0.00019758,2]
[406619920,1771978249886,-185.51,0.00019802,2]
[406619922,1771978249896,-1860.08650818,0.0002,2]
[406619924,1771978249905,-201.374848,0.0002,2]
[406619926,1771978249916,-538.79,0.00020016,2]
[406619928,1771978249925,-11713.0,0.00020103,2]
[406619930,1771978249935,-600.0,0.00020143,2]
[406619932,1771978249944,-482.62264482,0.0002024,2]
[406619934,1771978249954,-185.51,0.00020425,2]
[406619936,1771978249964,-155.72,0.00020548,2]
[406619938,1771978249973,-165.38,0.00020639,2]
[406619940,1771978249982,-538.79,0.00020649,2]
[406619942,1771978249993,-1016.0,0.00020681,2]
[406619944,1771978250003,-482.62264482,0.00020722,2]
[406619946,1771978250013,-173.87087054,0.000208,7]
[406619948,1771978250023,-600.0,0.00020818,2]
[406619950,1771978250033,-400.0,0.00021,2]
[406619952,1771978250043,-185.51,0.00021049,2]
[406619954,1771978250053,-734.0,0.00021121,2]
[406619956,1771978250062,-150.0,0.00021121,2]
[406619958,1771978250073,-284.0,0.00021121,2]
[406619961,1771978250083,-151.0,0.0002116,2]
[406619963,1771978250092,-151.0,0.0002116,2]
[406619965,1771978250101,-156.587,0.0002116,2]
[406619966,1771978250111,-162.380719,0.0002116,2]
[406619969,1771978250120,-159.89501112,0.0002116,2]
[406619970,1771978250130,-747.0,0.00021163,2]
[406619973,1771978250140,-150.0,0.00021163,2]
[406619974,1771978250150,-297.0,0.00021163,2]
[406619976,1771978250159,-482.62264482,0.00021203,2]
[406619979,1771978250169,-538.79,0.00021283,2]
[406619981,1771978250179,-1210.0,0.00021302,2]
[406619983,1771978250188,-920.0,0.00021302,2]
[406619984,1771978250198,-2455.0,0.00021302,2]
[406619986,1771978250209,-5980.0,0.00021302,2]
[406619988,1771978250219,-600.0,0.00021493,2]
[406619990,1771978250228,-14294.18937678,0.00021554,2]
[406619992,1771978250237,-739.0,0.00021673,2]
[406619994,1771978250246,-150.0,0.00021673,2]
[406619996,1771978250256,-288.0,0.00021673,2]
[406619998,1771978250266,-482.62264482,0.00021685,2]
[406620000,1771978250275,-151.0,0.00021708,2]
[406620002,1771978250284,-150.0,0.00021775,2]
[406620004,1771978250293,-150.0,0.00021775,2]
[406620006,1771978250303,-150.0,0.00021775,2]
[406620008,1771978250312,-150.0,0.00021775,2]
[406620010,1771978250321,-150.0,0.00021775,2]
[406620012,1771978250330,-150.0,0.00021775,2]
[406620014,1771978250339,-150.0,0.00021775,2]
[406620016,1771978250348,-150.0,0.00021775,2]
[406620018,1771978250358,-150.0,0.00021775,2]
[406620020,1771978250367,-150.0,0.00021775,2]
[406620022,1771978250377,-618.0,0.00021775,2]
[406620024,1771978250386,-1339.0,0.00021775,2]
[406620026,1771978250396,-3496.0,0.00021775,2]
[406620028,1771978250405,-1040.0,0.00021775,2]
[406620030,1771978250415,-154.3784608,0.00021818,2]
[406620033,1771978250426,-476.1,0.00021818,2]
[406620035,1771978250435,-454.02,0.00021818,2]
[406620037,1771978250444,-2000.0,0.00021917,2]
[406620039,1771978250453,-5000.0,0.00021918,2]
[406620041,1771978250463,-3046.41,0.00021918,2]
[406620043,1771978250472,-454.02,0.0002197,2]
[406620045,1771978250482,-5212.64343512,0.00022,4]
[406620047,1771978250491,-34942.47,0.00022,2]
[406620049,1771978250501,-476.1,0.00022084,2]
[406620051,1771978250509,-454.02,0.00022122,2]
[406620053,1771978250518,-482.62264482,0.00022167,2]
[406620055,1771978250527,-3224.35357671,0.00022226,2]
[406620057,1771978250536,-151.0,0.00022256,2]
[406620059,1771978250545,-454.02,0.00022274,2]
[406620061,1771978250555,-476.1,0.0002235,2]
[406620062,1771978250564,-454.02,0.00022427,2]
[406620064,1771978250574,-4643.93,0.00022466,2]
[406620066,1771978250584,-664.07,0.00022471,2]
[406620068,1771978250593,-664.07,0.00022471,2]
[406620071,1771978250603,-664.07,0.00022471,2]
[406620072,1771978250613,-664.07,0.00022471,2]
[406620074,1771978250623,-664.15022443,0.00022471,2]
[406620076,1771978250632,-831.01,0.00022471,2]
[406620079,1771978250642,-831.01,0.00022471,2]
[406620080,1771978250652,-831.01,0.00022471,2]
[406620082,1771978250661,-831.01,0.00022471,2]
[406620085,1771978250673,-831.1766601,0.00022471,2]
[406620087,1771978250682,-557.94,0.00022471,2]
[406620089,1771978250692,-557.94,0.00022471,2]
[406620091,1771978250702,-557.94,0.00022471,2]
[406620092,1771978250711,-557.94,0.00022471,2]
[406620095,1771978250720,-558.01,0.00022471,2]
[406620096,1771978250729,-1229.1,0.00022471,2]
[406620098,1771978250739,-454.02,0.00022579,2]
[406620101,1771978250749,-476.1,0.00022617,2]
[406620103,1771978250760,-482.62264482,0.00022649,2]
[406620105,1771978250770,-454.02,0.00022731,2]
[406620107,1771978250780,-156.47520079,0.00022804,2]
[406620109,1771978250789,-704.52755458,0.00022879,2]
[406620111,1771978250799,-476.1013388,0.00022883,2]
[406620113,1771978250809,-454.06021263,0.00022883,2]
[406620115,1771978250820,-450.0,0.00023,2]
[406620117,1771978250834,-160.0,0.00023,2]
[406620120,1771978250847,-482.62264482,0.00023131,2]
[406620122,1771978250862,-4594.0,0.00023523,2]
[406620124,1771978250874,-745.6,0.000236,2]
[406620127,1771978250885,-745.6,0.000236,2]
[406620129,1771978250896,-745.6,0.000236,2]
[406620131,1771978250906,-745.6,0.000236,2]
[406620133,1771978250918,-745.69338985,0.000236,2]
[406620135,1771978250931,-531.93,0.000236,2]
[406620137,1771978250942,-531.93,0.000236,2]
[406620140,1771978250954,-531.93,0.000236,2]
[406620142,1771978250967,-531.93,0.000236,2]
[406620144,1771978250979,-531.95229582,0.000236,2]
[406620146,1771978250993,-626.11,0.00023601,21]
[406620149,1771978251005,-626.11,0.00023601,21]
[406620151,1771978251017,-626.11,0.00023601,21]
[406620153,1771978251028,-626.11,0.00023601,21]
[406620155,1771978251041,-626.27,0.00023601,21]
[406620157,1771978251051,-482.62264482,0.00023613,2]
[406620159,1771978251062,-34942.47,0.000237,2]
[406620161,1771978251072,-184.0,0.00023945,7]
[406620164,1771978251084,-482.62264482,0.00024095,2]
[406620166,1771978251096,-238.0,0.00024162,7]
[406620168,1771978251108,-253.0415234,0.00024165,18]
[406620170,1771978251119,-1210.0,0.00024302,2]
[406620173,1771978251131,-920.0,0.00024302,2]
[406620175,1771978251142,-2455.0,0.00024302,2]
[406620177,1771978251153,-5980.0,0.00024302,2]
[406620180,1771978251166,-14294.18937678,0.00024503,2]
[406620181,1771978251178,-165.38,0.00024566,2]
[406620182,1771978251189,-1016.90418138,0.00024567,2]
[406620183,1771978251200,-1537.99,0.00024658,2]
[406620184,1771978251211,-1000.0,0.00024658,2]
[406620185,1771978251221,-508.33,0.00024774,2]
[406620186,1771978251234,-578.91,0.00024774,2]
[406620187,1771978251244,-501.44,0.00024774,2]
[406620188,1771978251256,-834.42,0.00024774,2]
[406620189,1771978251267,-150.0,0.00024775,2]
[406620190,1771978251278,-150.0,0.00024775,2]
[406620191,1771978251289,-150.0,0.00024775,2]
[406620192,1771978251300,-150.0,0.00024775,2]
[406620193,1771978251310,-150.0,0.00024775,2]
[406620194,1771978251321,-150.0,0.00024775,2]
[406620195,1771978251332,-150.0,0.00024775,2]
[406620197,1771978251345,-618.0,0.00024775,2]
[406620199,1771978251357,-1339.0,0.00024775,2]
[406620201,1771978251368,-3496.0,0.00024775,2]
[406620203,1771978251379,-500.0,0.00025,2]
[406620205,1771978251390,-8741.09521887,0.00025,2]
[406620208,1771978251402,-161.0,0.00025655,14]
[406620210,1771978251412,-205.0,0.00025847,2]
[406620212,1771978251422,-284.0,0.00025882,7]
[406620214,1771978251432,-208.0,0.00025887,14]
[406620216,1771978251443,-9496.26051981,0.000261,2]
[406620249,1771978251747,-681.68868639,0.00011099,2]
[406620274,1771978251980,-21691.67749463,0.00011099,2]
[406620275,1771978251992,-413.0,0.00021302,2]
[406620277,1771978252004,-1229.1,0.00022471,2]
[406620279,1771978252013,-1229.1,0.00022471,2]
[406620281,1771978252022,-1229.1,0.00022471,2]
[406620283,1771978252032,-1229.26529588,0.00022471,2]
[406620285,1771978252043,-413.0,0.00024302,2]
[406620287,1771978252052,-13165.75720949,0.000261,2]
[406620289,1771978252069,-332.16326864,0.000261,2]
[406620313,1771978252298,672.0,0.00045817,30]
[406620586,1771978763680,150.0,9.059e-05,2]
[406620587,1771978763902,500.0,9.059e-05,2]
[406620588,1771978764492,150.0,9.059e-05,2]
[406620589,1771978767071,500.0,9.059e-05,2]
[406620590,1771978767433,300.0,0.00045863,30]
[406620591,1771978769162,500.0,9.059e-05,2]
[406620592,1771978771752,150.0,9.059e-05,2]
[406620593,1771978812125,5564.14165189,0.0004584,120]
[406620594,1771978823610,508.0,0.0004584,30]
[406620595,1771978827782,150.0,9.059e-05,2]
[406620596,1771978828077,150.0,9.059e-05,2]
[406620597,1771978828580,158.03404655,9.059e-05,2]
[406620598,1771978829004,500.0,9.059e-05,2]
[406620599,1771978829080,500.0,9.059e-05,2]
[406620600,1771978829171,500.0,9.059e-05,2]
[406620601,1771978829299,150.0,9.059e-05,2]
[406620602,1771978829370,500.0,9.059e-05,2]
[406620603,1771978829745,150.0,9.059e-05,2]
[406620604,1771978829811,150.0,9.059e-05,2]
[406620605,1771978893600,1733.185,9.048e-05,2]
[406620606,1771978893639,213.732,9.048e-05,2]
[406620607,1771978903034,876.11,0.0004584,120]
[406620608,1771978903264,876.11,0.0004584,120]
[406620609,1771978903524,876.11,0.0004584,120]
[406620610,1771978903780,876.11,0.0004584,120]
[406620611,1771978904069,876.11,0.0004584,120]
[406620612,1771978904655,876.11,0.0004584,120]
[406620613,1771978904965,876.11,0.0004584,120]
[406620614,1771978905141,876.11,0.0004584,120]
[406620615,1771978905365,876.11,0.0004584,120]
[406620616,1771978905625,876.11,0.0004584,120]
[406620617,1771978905868,876.11,0.0004584,120]
[406620618,1771978906135,876.11,0.0004584,120]
[406620619,1771978906360,876.11,0.0004584,120]
[406620620,1771978906596,876.11,0.0004584,120]
[406620621,1771978906837,876.11,0.0004584,120]
[406620622,1771978907075,876.11,0.0004584,120]
[406620623,1771978907351,876.11,0.0004584,120]
[406620624,1771978907605,876.11,0.0004584,120]
[406620625,1771978907851,876.11,0.0004584,120]
[406620626,1771978908088,876.11,0.0004584,120]
[406620627,1771978908350,876.11,0.0004584,120]
[406620628,1771978908717,876.11,0.0004584,120]
[406620629,1771978908952,876.11,0.0004584,120]
[406620630,1771978909208,876.27,0.0004584,120]
[406620631,1771978939942,150.0,9.059e-05,2]
[406620632,1771978940132,150.0,9.059e-05,2]
[406620633,1771978940710,150.0,9.059e-05,2]
[406620634,1771978941326,607.0,9.059e-05,2]
[406620635,1771978941474,150.0,9.059e-05,2]
[406620636,1771978942532,150.0,9.059e-05,2]
[406620638,1771979027716,1000.0,8.98e-05,2]
[406620639,1771979065921,150.0,8.966e-05,2]
[406620640,1771979066079,150.0,9.021e-05,2]
[406620641,1771979066623,150.0,8.966e-05,2]
[406620642,1771979066776,500.0,8.966e-05,2]
[406620643,1771979066813,500.0,8.966e-05,2]
[406620644,1771979066965,500.0,9.021e-05,2]
[406620645,1771979067001,500.0,9.021e-05,2]
[406620646,1771979067035,500.0,8.966e-05,2]
[406620647,1771979067074,150.0,9.021e-05,2]
[406620648,1771979067126,150.0,8.966e-05,2]
[406620649,1771979067188,500.0,9.021e-05,2]
[406620650,1771979067295,150.0,8.966e-05,2]
[406620651,1771979067786,150.0,8.966e-05,2]
[406620652,1771979067953,150.0,9.021e-05,2]
[406620653,1771979068143,500.0,8.966e-05,2]
[406620654,1771979068557,500.0,9.021e-05,2]
[406620655,1771979084469,225.460071,8.778e-05,2]
[406620656,1771979130297,150.0,8.966e-05,2]
[406620657,1771979130452,150.0,9.021e-05,2]
[406620658,1771979130641,500.0,8.966e-05,2]
[406620659,1771979130787,500.0,8.966e-05,2]
[406620660,1771979130824,500.0,9.021e-05,2]
[406620661,1771979130987,503.40674056,9.021e-05,2]
[406620662,1771979131503,202.0529846,8.966e-05,2]
[406620663,1771979132054,1097.0,8.966e-05,2]
[406620664,1771979132221,1097.0,9.021e-05,2]
[406620665,1771979232313,500.0,0.00045843,120]
[406620666,1771979232554,500.0,0.00045843,120]
[406620667,1771979232997,500.0,0.00045843,120]
[406620668,1771979233153,500.0,0.00045843,120]
[406620669,1771979233307,500.0,0.00045843,120]
[406620670,1771979233542,500.0,0.00045843,120]
[406620671,1771979233834,500.0,0.00045843,120]
[406620672,1771979234064,500.0,0.00045843,120]
[406620673,1771979234313,500.0,0.00045843,120]
[406620674,1771979234601,500.0,0.00045843,120]
[406620675,1771979234792,500.0,0.00045843,120]
[406620676,1771979235028,500.0,0.00045843,120]
[406620677,1771979235268,500.0,0.00045843,120]
[406620678,1771979235512,500.0,0.00045843,120]
[406620679,1771979235739,500.0,0.00045843,120]
[406620680,1771979235999,500.0,0.00045843,120]
[406620681,1771979236257,500.0,0.00045843,120]
[406620682,1771979236495,500.0,0.00045843,120]
[406620683,1771979236736,500.0,0.00045843,120]
[406620684,1771979236978,399.54866809,0.00045843,120]
[406620685,1771979299793,252.70827069,8.966e-05,2]
[406620686,1771979300299,274.93429558,8.966e-05,2]
[406620687,1771979301046,218.19572335,8.966e-05,2]
[406620688,1771979301163,208.80251457,8.966e-05,2]
[406620689,1771979301298,150.0,8.966e-05,2]
[406620690,1771979301468,202.65175273,9.021e-05,2]
[406620691,1771979301797,150.0,8.966e-05,2]
[406620692,1771979301917,500.0,8.966e-05,2]
[406620693,1771979301961,237.7581814,9.021e-05,2]
[406620694,1771979302018,582.0,8.966e-05,2]
[406620695,1771979302081,500.0,9.021e-05,2]
[406620696,1771979302168,582.0,9.021e-05,2]
[406620697,1771979313841,1441.49953652,9.033e-05,2]
[406620698,1771979313867,10000.01,9.033e-05,2]
[406620699,1771979313896,10000.01,9.033e-05,2]
[406620700,1771979313922,10000.01,9.033e-05,2]
[406620701,1771979313946,10000.01,9.033e-05,2]
[406620702,1771979313972,10000.01,9.033e-05,2]
[406620703,1771979313999,10000.01,9.033e-05,2]
[406620704,1771979314024,10000.01,9.033e-05,2]
[406620705,1771979314050,10000.01,9.033e-05,2]
[406620708,1771979364417,210.15,8.354e-05,2]
[406620728,1771979432186,-300.0,9.013e-05,2]
[406620730,1771979432196,-472.22552744,9.013e-05,2]
[406620732,1771979432209,-727.77447256,9.013e-05,2]
[406620735,1771979432220,-147.71552744,9.013e-05,2]
[406620737,1771979432233,-152.28447256,9.013e-05,2]
[406620739,1771979432243,-13789.0,9.014e-05,2]
[406620741,1771979432255,-150.0,9.032e-05,2]
[406620743,1771979432265,-300.67557544,9.033e-05,2]
[406620744,1771979432278,-53429.29660499,9.033e-05,2]
[406620745,1771979432289,-32858.662565,9.033e-05,2]
[406620746,1771979432320,-470.9133467,9.033e-05,2]
[406620748,1771979432369,-1594.4736441,9.033e-05,2]
[406620749,1771979432397,-869.72928149,9.033e-05,2]
[406620750,1771979437916,-248.6244197,9.032e-05,2]
[406620751,1771979437925,-500.0,9.032e-05,2]
[406620752,1771979437934,-500.0,9.032e-05,2]
[406620753,1771979437943,-500.0,9.032e-05,2]
[406620754,1771979437952,-159.3287765,9.032e-05,2]
[406620755,1771979437961,-544.3142405,9.032e-05,2]
[406620756,1771979437970,-248.23983097,9.032e-05,2]
[406620757,1771979437980,-169.90878567,9.032e-05,2]
[406620758,1771979437989,-500.0,9.032e-05,2]
[406620759,1771979437998,-500.0,9.032e-05,2]
[406620760,1771979438008,-500.0,9.032e-05,2]
[406620761,1771979438017,-500.0,9.032e-05,2]
[406620762,1771979438026,-500.0,9.032e-05,2]
[406620763,1771979438036,-500.0,9.032e-05,2]
[406620764,1771979438046,-500.0,9.032e-05,2]
[406620765,1771979438055,-500.0,9.032e-05,2]
[406620766,1771979438064,-500.0,9.032e-05,2]
[406620767,1771979438074,-500.0,9.032e-05,2]
[406620768,1771979438083,-500.0,9.032e-05,2]
[406620769,1771979438092,-429.99999999,9.032e-05,2]
[406620770,1771979438102,-500.0,9.032e-05,2]
[406620771,1771979438111,-500.0,9.032e-05,2]
[406620772,1771979438121,-5877.52177495,9.033e-05,2]
[406620814,1771979440147,-12082.43720996,9.033e-05,2]
[406620815,1771979440159,-640.8096,9.033e-05,2]
[406620816,1771979440361,-3749.88529281,9.033e-05,2]
[406620817,1771979440470,-3306684.01556804,9.033e-05,2]
[406620818,1771979440479,-184.7003,9.033e-05,2]
[406620819,1771979440488,-2247.6294117,9.033e-05,2]
[406620820,1771979440498,-338.37895444,9.075e-05,2]
[406620821,1771979440507,-250.0,9.075e-05,2]
[406620822,1771979440521,-500.0,9.076e-05,2]
[406620823,1771979440531,-150.0,9.076e-05,2]
[406620824,1771979440540,-500.0,9.076e-05,2]
[406620825,1771979440551,-1097.0,9.076e-05,2]
[406620826,1771979440562,-500.0,9.076e-05,2]
[406620827,1771979440571,-582.0,9.076e-05,2]
[406620828,1771979440580,-19912.52,9.096e-05,2]
[406620829,1771979440590,-251.84750329,9.114e-05,2]
[406620830,1771979440599,-587.38563793,9.114e-05,2]
[406620831,1771979440609,-150.0,9.114e-05,2]
[406620832,1771979440618,-500.0,9.114e-05,2]
[406620833,1771979440628,-500.0,9.114e-05,2]
[406620834,1771979440638,-150.0,9.114e-05,2]
[406620835,1771979440648,-150.0,9.114e-05,2]
[406620836,1771979440657,-223.26705533,9.114e-05,2]
[406620837,1771979440671,-500.0,9.13e-05,2]
[406620838,1771979440681,-277.65171186,9.13e-05,2]
[406620839,1771979440691,-529.75939296,9.13e-05,2]
[406620840,1771979440700,-1097.0,9.13e-05,2]
[406620841,1771979440709,-557.3401187,9.13e-05,2]
[406620842,1771979440719,-582.0,9.13e-05,2]
[406620843,1771979440728,-500.0,9.132e-05,2]
[406620844,1771979440737,-529.17,9.132e-05,2]
[406620845,1771979440747,-2500.0,9.133e-05,2]
[406620846,1771979440756,-150.0,9.169e-05,2]
[406620847,1771979440766,-500.0,9.169e-05,2]
[406620848,1771979440776,-500.0,9.169e-05,2]
[406620849,1771979440786,-150.0,9.169e-05,2]
[406620850,1771979440796,-150.0,9.169e-05,2]
[406620851,1771979440806,-500.0,9.185e-05,2]
[406620852,1771979440817,-1097.0,9.185e-05,2]
[406620853,1771979440827,-582.0,9.185e-05,2]
[406620854,1771979440836,-150.0,9.223e-05,2]
[406620855,1771979440847,-500.0,9.223e-05,2]
[406620856,1771979440856,-284.49243142,9.223e-05,2]
[406620857,1771979440869,-150.0,9.223e-05,2]
[406620858,1771979440878,-205.3756525,9.223e-05,2]
[406620859,1771979440889,-500.0,9.24e-05,2]
[406620860,1771979440899,-1097.0,9.24e-05,2]
[406620861,1771979440908,-582.0,9.24e-05,2]
[406620862,1771979440917,-9999.99,9.24e-05,2]
[406620863,1771979440926,-499.99,9.24e-05,2]
[406620864,1771979440936,-299.99,9.24e-05,2]
[406620865,1771979440945,-9999.99,9.24e-05,2]
[406620866,1771979440955,-9999.99,9.24e-05,2]
[406620867,1771979440964,-150.0,9.278e-05,2]
[406620868,1771979440973,-257.10875232,9.278e-05,2]
[406620869,1771979440983,-150.0,9.278e-05,2]
[406620870,1771979440993,-9999.99,9.278e-05,2]
[406620871,1771979441003,-150.99,9.278e-05,2]
[406620872,1771979441012,-9999.99,9.278e-05,2]
[406620873,1771979441022,-150.99,9.278e-05,2]
[406620875,1771979441031,-4296.28,9.278e-05,2]
[406620877,1771979441041,-999.99,9.278e-05,2]
[406620879,1771979441052,-500.0,9.295e-05,2]
[406620880,1771979441067,-1097.0,9.295e-05,2]
[406620881,1771979441076,-582.0,9.295e-05,2]
[406620882,1771979441086,-2786.47816513,9.333e-05,2]
[406620883,1771979441107,-302.11081142,9.333e-05,2]
[406620906,1771979493624,1819.844,8.754e-05,2]
[406620907,1771979493661,224.418,8.754e-05,2]
[406620909,1771979552809,500.0,0.00045844,120]
[406620910,1771979553223,500.0,0.00045844,120]
[406620911,1771979553526,500.0,0.00045844,120]
[406620912,1771979553675,500.0,0.00045844,120]
[406620913,1771979553839,500.0,0.00045844,120]
[406620914,1771979554081,500.0,0.00045844,120]
[406620915,1771979554336,500.0,0.00045844,120]
[406620916,1771979554588,500.0,0.00045844,120]
[406620917,1771979554839,500.0,0.00045844,120]
[406620918,1771979555080,500.0,0.00045844,120]
[406620919,1771979555321,500.0,0.00045844,120]
[406620920,1771979555563,622.10468473,0.00045844,120]
[406620921,1771979571322,188.0,0.00018101,120]
[406620925,1771979707451,-150.0,8.932e-05,2]
[406620926,1771979707481,-300.0,8.932e-05,2]
[406620927,1771979707510,-300.0,8.932e-05,2]
[406620928,1771979707541,-300.0,8.932e-05,2]
[406620929,1771979707571,-1200.0,8.932e-05,2]
[406620931,1771979716867,814.71,8.891e-05,2]
[406620932,1771979756135,3584.65048636,8.923e-05,2]
[406620933,1771979762454,150.0,8.932e-05,2]
[406620934,1771979763430,300.0,8.932e-05,2]
[406620935,1771979766156,288.45904307,8.932e-05,2]
[406620936,1771979778471,362.19047057,8.932e-05,2]
[406620937,1771979778497,137.80952943,8.932e-05,2]
[406620938,1771979778532,500.0,8.932e-05,2]
[406620939,1771979778566,500.0,8.932e-05,2]
[406620940,1771979778598,500.0,8.932e-05,2]
[406620941,1771979778812,500.0,8.932e-05,2]
[406620942,1771979778850,500.0,8.932e-05,2]
[406620943,1771979778889,500.0,8.932e-05,2]
[406620944,1771979778922,463.0,8.932e-05,2]
[406620945,1771979778957,500.0,8.932e-05,2]
[406620946,1771979778998,500.0,8.932e-05,2]
[406620947,1771979779032,500.0,8.932e-05,2]
[406620948,1771979821487,300.0,8.932e-05,2]
[406620949,1771979825508,174.03709379,8.932e-05,2]
[406620950,1771979828576,2500.0,8.833e-05,2]
[406620951,1771979832317,151.0,0.00045844,120]
[406620952,1771979832981,151.0,0.00045844,120]
[406620953,1771979834670,500.0,8.932e-05,2]
[406620954,1771979834882,581.01996835,8.932e-05,2]
[406620955,1771979850578,500.0,0.00045844,30]
[406620956,1771979881611,300.0,8.932e-05,2]
[406620957,1771979941552,300.0,8.932e-05,2]
[406620958,1771979942345,150.0,8.932e-05,2]
[406620959,1771979968794,94.14340843,8.91e-05,2]
[406620960,1771979968816,55.85659157,8.91e-05,2]
[406620961,1771979969085,500.0,8.91e-05,2]
[406620962,1771979971022,533.0,8.91e-05,2]
[406620963,1771979972546,2500.0,8.833e-05,2]
[406620965,1771980001241,1200.0,8.932e-05,2]
[406620966,1771980003614,443.947464,8.723e-05,2]
[406620967,1771980007694,5323.062536,8.702e-05,2]
[406620968,1771980007725,10000.01,8.702e-05,2]
[406620969,1771980007766,7624.347464,8.702e-05,2]
[406620970,1771980061235,300.0,8.932e-05,2]
[406620971,1771980078960,1783.4215,8.833e-05,2]
[406620972,1771980088235,500.8,0.0004582,120]
[406620973,1771980093384,10000.01,8.833e-05,2]
[406620974,1771980093407,10000.01,8.833e-05,2]
[406620975,1771980093431,10000.01,8.833e-05,2]
[406620976,1771980093454,10000.01,8.833e-05,2]
[406620977,1771980093482,10000.01,8.833e-05,2]
[406620978,1771980093505,10000.01,8.833e-05,2]
[406620979,1771980093528,10000.01,8.833e-05,2]
[406620980,1771980093552,10000.01,8.833e-05,2]
[406620981,1771980106512,-356.0,8.684e-05,2]
[406620982,1771980315634,-2974.784064,8.61e-05,2]
[406620983,1771980315665,-500.0,8.654e-05,2]
[406620984,1771980315692,-1198.021872,8.656e-05,2]
[406620985,1771980316120,-654.398128,8.656e-05,2]
[406620986,1771980316154,-250.0,8.67e-05,2]
[406620987,1771980316184,-1200.0,8.683e-05,2]
[406620988,1771980316213,-300.0,8.683e-05,2]
[406620989,1771980322453,-5819.3986892,8.684e-05,2]
[406620990,1771980322485,-3526.9486892,8.684e-05,2]
[406620991,1771980322509,-2946.1126216,8.684e-05,2]
[406620992,1771980322610,-3257.2162,8.733e-05,2]
[406620993,1771980322634,-3485.5776,8.733e-05,2]
[406620994,1771980322761,-0.01,8.733e-05,2]
[406620995,1771980322783,-9999.99,8.733e-05,2]
[406620996,1771980324366,-179.535,8.754e-05,2]
[406620997,1771980324394,-1455.875,8.754e-05,2]
[406620998,1771980324422,-150.0,8.794e-05,2]
[406620999,1771980324449,-2606.0,8.795e-05,2]
[406621000,1771980324530,-1217.19,8.795e-05,2]
[406621001,1771980324544,-10000.01,8.795e-05,2]
[406621002,1771980324598,-4400.8,8.795e-05,2]
[406621003,1771980361466,300.0,8.832e-05,2]
[406621004,1771980366402,166.66,8.494e-05,2]
[406621005,1771980366653,166.66,8.774e-05,2]
[406621006,1771980367679,565.09,8.823e-05,2]
[406621007,1771980367700,10000.01,8.823e-05,2]
[406621008,1771980367722,10000.01,8.823e-05,2]
[406621009,1771980367745,10000.01,8.823e-05,2]
[406621010,1771980367766,10000.01,8.823e-05,2]
[406621011,1771980367786,10000.01,8.823e-05,2]
[406621012,1771980367807,193.52523244,8.823e-05,2]
[406621014,1771980413281,10000.01,8.733e-05,2]
[406621015,1771980413313,10000.01,8.733e-05,2]
[406621016,1771980413343,10000.01,8.733e-05,2]
[406621017,1771980421867,-300.0,8.732e-05,2]
[406621018,1771980423556,956.17,4.927e-05,2]
[406621019,1771980423789,956.17,5.1e-05,2]
[406621020,1771980424007,956.17,5.273e-05,2]
[406621021,1771980424362,956.17,5.446e-05,2]
[406621022,1771980424570,956.17,5.618e-05,2]
[406621023,1771980424842,219.16,5.791e-05,2]
[406621024,1771980424873,737.01,5.791e-05,2]
[406621025,1771980425230,956.17,5.964e-05,2]